Cogmind - Beta 11 X8 *** ADVENTURER MODE // 2021.11.05 @ 15:39:44 // Winter2019/RPGLIKE Player: Salamander Result: Destroyed by EQ-038 with Improved KE Penetrator Performance ------------- Evolutions (9) 4500 Regions Visited (23) 4600 Robots Destroyed (546) 2730 Value Destroyed (29556) 29556 Prototype IDs (104) 2080 Alien Tech Used (12) 2400 Bonus (20094) 20094 TOTAL SCORE: 65960 Bonus ------- High Alert Combat Kills 7176 Follower Combat Kills 2059 Network Hubs Disabled 800 Aligned with FarCom 300 Built Enhanced Grunts 300 A7 Reached Mainframe 300 Destroyed MAIN.C Guards 500 Met MAIN.C 5000 Hacked MAIN.C 300 Destroyed MAIN.C Shell 5000 Friendly Fire -1641 Cogmind --------- Core Integrity 0/2500 Matter 565/625 Energy 450/450 System Corruption 0% Temperature Cool (0) Movement Core (50) Location -1/Command Parts ------- > --- POWER (2) -------- (None) > --- PROPULSION (4) --- (None) > --- UTILITY (11) ----- (None) > --- WEAPON (4) ------- (None) > --- INVENTORY (6) ---- Protomatter-85 Protomatter-77 Subatomic Replicator Peak State ------------ > --- POWER ------------ Reinforced Quantum Reactor Improved Quantum Reactor > --- PROPULSION ------- Enhanced Biometal Leg Enhanced Biometal Leg Enhanced Biometal Leg Enhanced Biometal Leg > --- UTILITY ---------- Experimental Cooling System Makeshift Terrain Scanner Experimental Targeting Computer Experimental Target Analyzer Advanced Armor Integrity Analyzer Advanced Weapon Cycler Experimental Phase Shifter 8R-AWN's Armor/EX Microwarp Drive > --- WEAPON ----------- 8R-AWN's Boregun 8R-AWN's Boregun Sigix Broadsword > --- INVENTORY -------- Trap Reconfigurator High-powered Transdimensional Reconstructor Integrity Redistributor Integrity Redistributor Subatomic Replicator [Rating: 212] Favorites ----------- Power Quantum Reactor Engine Heavy Deuterium Engine Power Core Micro Fission Core Reactor Quantum Reactor Propulsion Enhanced Biometal Leg Leg Enhanced Biometal Leg Hover Unit Hover Unit Flight Unit Flight Unit Utility 8R-AWN's Armor/EX Device Makeshift Terrain Scanner Storage Experimental Energy Well Processor Experimental Target Analyzer Hackware System Mapper Protection 8R-AWN's Armor/EX Artifact Microwarp Drive Weapon 8R-AWN's Boregun Energy Gun Heavy Wave Gun Energy Cannon Improved Potential Cannon Ballistic Gun 8R-AWN's Boregun Ballistic Cannon Omega Cannon Launcher Rocket Launcher Special Weapon Remote Datajack Slashing Weapon Sigix Broadsword Build | -11 -10 -10 -10 -9 -8 -7 -7 -7 -7 -6 -6 -6 -6 -6 -5 -4 -3 -3 -2 -2 -2 -1 -1 ------- Run | Scr Mat Min Exi Min Mat Fac Was Fac Sto Fac Ext Cet Arc Hub Fac Fac Res Tes Res Qua Sec Acc Com Slots Evolved 17 | 3 1 1 . . . 2 . . 1 . 1 . . 1 2 . 3 . . 1 1 . . Power 1 | . . . . . . . . . . . . . . . 1 . . . . . . . . Propulsion 3 | 1 1 . . . . . . . . . . . . . 1 . . . . . . . . Utility 10 | 1 . 1 . . . 2 . . 1 . 1 . . 1 . . 2 . . . 1 . . Weapon 3 | 1 . . . . . . . . . . . . . . . . 1 . . 1 . . . Parts Attached 178 | 6 8 . 12 . 4 2 4 5 2 1 11 1 . 9 6 4 10 25 6 9 14 3 36 Power 13 | 1 . . 1 . 2 . 1 . . . . 1 . . 1 1 . . 1 . 2 . 2 Engine 3 | 1 . . 1 . 1 . . . . . . . . . . . . . . . . . . Core 2 | . . . . . 1 . . . . . . . . . 1 . . . . . . . . Reactor 8 | . . . . . . . 1 . . . . 1 . . . 1 . . 1 . 2 . 2 Propulsion 30 | 2 4 . 4 . . . . 5 2 . . . . 4 1 . . 2 . . 2 1 3 Treads . | . . . . . . . . . . . . . . . . . . . . . . . . Leg 22 | 2 . . 3 . . . . 4 1 . . . . 4 1 . . 1 . . 2 1 3 Wheel . | . . . . . . . . . . . . . . . . . . . . . . . . Hover 5 | . 1 . 1 . . . . 1 1 . . . . . . . . 1 . . . . . Flight 3 | . 3 . . . . . . . . . . . . . . . . . . . . . . Utility 93 | 1 . . 3 . 2 2 3 . . 1 2 . . 5 4 3 10 14 3 5 10 2 23 Device 72 | 1 . . 2 . 2 2 3 . . . 2 . . 5 4 3 7 13 2 5 6 1 14 Storage 2 | . . . . . . . . . . . . . . . . . . . . . . . 2 Processor 9 | . . . . . . . . . . 1 . . . . . . 3 . 1 . 3 . 1 Hackware 2 | . . . . . . . . . . . . . . . . . . 1 . . . 1 . Protection 7 | . . . 1 . . . . . . . . . . . . . . . . . . . 6 Artifact 1 | . . . . . . . . . . . . . . . . . . . . . 1 . . Weapon 42 | 2 4 . 4 . . . . . . . 9 . . . . . . 9 2 4 . . 8 Energy Gun 2 | . . . . . . . . . . . . . . . . . . 2 . . . . . Energy Cannon 3 | . . . . . . . . . . . . . . . . . . . . 1 . . 2 Ballistic Gun 22 | 2 4 . 2 . . . . . . . 4 . . . . . . 5 1 1 . . 3 Ballistic Cannon 4 | . . . . . . . . . . . . . . . . . . 2 1 . . . 1 Launcher 1 | . . . 1 . . . . . . . . . . . . . . . . . . . . Special Weapon 5 | . . . . . . . . . . . 4 . . . . . . . . . . . 1 Impact Weapon . | . . . . . . . . . . . . . . . . . . . . . . . . Slashing Weapon 5 | . . . 1 . . . . . . . 1 . . . . . . . . 2 . . 1 Piercing Weapon . | . . . . . . . . . . . . . . . . . . . . . . . . Special Melee Weapon . | . . . . . . . . . . . . . . . . . . . . . . . . Unidentified Prototypes 57 | . . . 4 . 1 . 1 1 1 . . . . 4 . . 2 13 1 4 11 2 12 Parts Lost 3 | . . . . . . . . . . . . . . . . . . . . . . . 3 Power . | . . . . . . . . . . . . . . . . . . . . . . . . Propulsion . | . . . . . . . . . . . . . . . . . . . . . . . . Utility 2 | . . . . . . . . . . . . . . . . . . . . . . . 2 Weapon 1 | . . . . . . . . . . . . . . . . . . . . . . . 1 Highest Loss Streak 3 | . . . . . . . . . . . . . . . . . . . . . . . 3 Average Slot Usage (%) 88 | . 85 79 87 88 88 82 90 90 86 83 91 92 92 92 90 93 89 88 88 88 86 90 87 Engine 2 | . 13 11 11 11 11 9 1 . . . . . . . . . . . . . . . . Reactor 6 | . . . . . . . 7 9 8 8 7 7 7 7 6 10 10 10 10 10 9 9 7 Leg 22 | . 19 . 15 33 33 27 27 27 26 25 23 23 23 21 21 25 22 20 21 20 18 19 18 Flight 1 | . 6 34 16 . . . . . . . . . . . . . . . . . . . . Device 25 | . 13 11 14 11 11 19 27 27 26 25 31 38 38 41 39 37 33 30 25 25 23 27 26 Processor 6 | . . . . . . . . . . . 5 . . . . . 4 10 10 10 15 14 13 Protection 6 | . . . 7 11 11 9 9 9 8 8 7 7 7 7 6 6 5 5 5 5 4 4 4 Ballistic Gun 13 | . 27 22 15 22 22 18 18 18 17 16 14 15 15 14 12 12 10 7 10 10 9 9 7 Slashing Weapon 1 | . . . 3 . . . . . . . . . . . . . . . . 3 4 4 3 Naked Turns 5 | . . . . . . . . . . . . . . . . . . . . . . . 5 Heaviest Build 132 | 6 10 10 48 48 48 53 59 59 59 59 63 67 67 70 75 84 86 112 106 116 118 116 132 Greatest Support 131 | 25 25 17 85 85 85 85 85 95 95 95 95 95 95 95 125 125 125 125 125 125 125 127 131 Greatest Overweight (x) 7 | . . . 2 . . . . . 7 . . . . . . . . . . . 1 . 1 Average Overweight (x) . | . . . . . . . . . . . . . . . . . . . . . . . . Largest Inventory Capacity 6 | 3 3 3 3 3 4 4 4 4 5 5 5 5 5 5 5 5 5 5 6 6 6 6 6 Average Capacity 4 | 2 3 3 3 3 3 4 4 4 4 5 5 5 5 5 5 5 5 5 5 6 6 6 6 Most Carried 6 | . 3 3 3 3 4 4 4 4 5 5 5 5 5 5 5 5 5 5 6 6 6 6 6 Average Carried 4 | . 2 3 2 3 3 4 4 3 4 5 4 5 5 4 4 5 4 4 5 5 5 5 5 Final Capacity 6 | 3 3 3 3 3 4 4 4 4 5 5 5 5 5 5 5 5 5 5 6 6 6 6 6 Final Carried 6 | . 3 3 3 3 4 4 4 4 5 5 5 5 5 5 5 5 5 5 5 6 6 6 3 Class Distribution -------------------- 33% | Scavenger-Skirmisher 22% | Scavenger-Gladiator 18% | Hacker-Skirmisher 9% | Wizard-Skirmisher 3% | Wizard-Gladiator 3% | Skirmisher 3% | Scavenger-Gunner Dominant Class ---------------- Skirmisher | -10/Materials Hacker-Scout | -10/Mines Scavenger-Skirmisher | -10/Exiles Scavenger-Skirmisher | -9/Mines Scavenger-Skirmisher | -8/Materials Hacker-Skirmisher | -7/Factory Scavenger-Skirmisher | -7/Waste Hacker-Skirmisher | -7/Factory Hacker-Skirmisher | -7/Storage Hacker-Skirmisher | -6/Factory Scavenger-Skirmisher | -6/Extension Hacker-Skirmisher | -6/Cetus Hacker-Skirmisher | -6/Archives Hacker-Skirmisher | -6/Hub_04(d) Scavenger-Skirmisher | -5/Factory Scavenger-Skirmisher | -4/Factory Scavenger-Skirmisher | -3/Research Scavenger-Skirmisher | -3/Testing Wizard-Skirmisher | -2/Research Wizard-Gladiator | -2/Quarantine Scavenger-Gladiator | -2/Section 7 Scavenger-Gladiator | -1/Access Scavenger-Gladiator | -1/Command Resources | -11 -10 -10 -10 -9 -8 -7 -7 -7 -7 -6 -6 -6 -6 -6 -5 -4 -3 -3 -2 -2 -2 -1 -1 ----------- Run | Scr Mat Min Exi Min Mat Fac Was Fac Sto Fac Ext Cet Arc Hub Fac Fac Res Tes Res Qua Sec Acc Com Matter Collected 14260 | 214 248 50 457 144 639 1017 100 387 611 42 745 153 48 323 503 232 1040 981 1297 1025 1324 959 1721 Remotely 1488 | . . . . . . . . . . . . . . . . 232 1040 216 . . . . . Salvage Created 30780 | 83 481 50 508 100 1720 1372 184 575 1377 363 582 150 124 2810 632 592 4091 2115 3107 1661 2230 2297 3576 Parts 1826 | 3 44 3 65 . 96 83 6 42 77 18 38 10 9 171 30 40 302 103 187 125 120 140 114 Haulers Intercepted 18 | . 2 . . . 3 3 . . . 1 . . . 3 . . 3 . 2 . . 1 . Recyclers Shooed 13 | 1 3 . . . 1 . . . . 2 . . . . . . 2 1 . 1 . 2 . Parts Field Recycled . | . . . . . . . . . . . . . . . . . . . . . . . . Retrieved Matter . | . . . . . . . . . . . . . . . . . . . . . . . . Parts Self-Destructed . | . . . . . . . . . . . . . . . . . . . . . . . . Prevented . | . . . . . . . . . . . . . . . . . . . . . . . . Kills | -11 -10 -10 -10 -9 -8 -7 -7 -7 -7 -6 -6 -6 -6 -6 -5 -4 -3 -3 -2 -2 -2 -1 -1 ------- Run | Scr Mat Min Exi Min Mat Fac Was Fac Sto Fac Ext Cet Arc Hub Fac Fac Res Tes Res Qua Sec Acc Com Combat Hostiles Destroyed 378 | . 17 3 8 . 24 21 . 13 21 3 10 2 3 26 7 7 51 23 36 24 22 25 32 Melee 7 | . . . 2 . . . . . . . . . . . . . . . . 4 1 . . Guns 349 | . 17 3 . . 23 20 . 13 21 3 10 2 3 25 7 6 51 22 36 20 21 25 21 Cannons 5 | . . . . . . . . . . . . . . . . . . 1 . . . . 4 AOE 16 | . . . 6 . 1 1 . . . . . . . 1 . 1 . . . . . . 6 Classes Destroyed 29 | 2 5 . 3 . 5 2 . 2 1 . 1 . . . . . 4 . . 1 1 . 2 Worker 48 | . . . . . 2 2 . . . 3 . . . 11 . 2 12 1 6 3 . 5 1 Builder 28 | . . . . . 2 1 . 1 3 1 1 . . 5 1 . 4 1 4 1 2 1 . Tunneler 2 | 1 . . . . . . . . . . . . . . . . . . . . . 1 . Hauler 18 | . 2 . . . 3 3 . . . 1 . . . 3 . . 3 . 2 . . 1 . Recycler 15 | 1 . . . 1 4 . . . 1 . 1 . . 2 . . 3 1 . . . 1 . Carrier 2 | . . . . . . . . . . . . . . . . . 1 . 1 . . . . Mechanic 7 | . 1 . . . . 1 . 1 . . . . . 1 . . . 1 . . 1 . 1 Operator 9 | . . . . . . 1 . . . . 1 . . 2 1 . . . . 1 2 1 . Drone 2 | . . . . . . . . . . . . . . . . . . . . . . . 2 Turret 1 | . . . 1 . . . . . . . . . . . . . . . . . . . . Watcher 31 | . 2 . . . 3 1 . . . 1 . 1 . 4 . 1 4 2 3 2 1 5 1 Swarmer 41 | . 8 3 . . 3 4 . 3 . . . . . 1 . . 8 . 5 . . 6 . Cutter 1 | . . . . . . . . . . . . . . . . . 1 . . . . . . Saboteur 1 | . . . . . . . . . . . . . . . . . 1 . . . . . . Grunt 149 | . 9 . . . 10 9 . 3 13 2 4 . . 10 3 5 16 12 20 9 7 10 7 Brawler 5 | . . . . . 1 . . 1 . . . . . 1 . . 1 . 1 . . . . Duelist 6 | . . . . . 1 2 . 1 1 . . . . . . . . 1 . . . . . Protector 6 | . . . . . . . . . 2 . . . . 3 . . 1 . . . . . . Researcher 2 | . . . . . . . . . . . . . . . . . . . . 2 . . . Sentry 49 | . . . . . 9 5 . 3 3 . 4 . 3 2 4 . 3 4 2 2 3 . 2 Specialist 8 | . . . . . . . . . . . . . . . . . 3 . . 2 2 . 1 Hunter 37 | . . . . . . . . 1 1 1 1 . . 1 . 1 10 4 2 6 2 5 2 Programmer 29 | . . . . . . . . 1 1 . . 1 . 1 . . 3 1 4 5 4 4 4 Heavy 8 | . . . . . . 1 . . . . . . . 1 . 1 4 . 1 . . . . Behemoth 4 | . . . . . . . . . . . 1 . . . . . 1 . 1 . 1 . . Cetus Guard 1 | . . . . . . . . . . . . 1 . . . . . . . . . . . S7 Guard 1 | . . . . . . . . . . . . . . . . . . . . . 1 . . M Guard 2 | . . . . . . . . . . . . . . . . . . . . . . . 2 Enhanced Grunt 2 | . . . . . . . . . . . . . . 2 . . . . . . . . . Enhanced Q-Series 9 | . . . . . . . . . . . . . . . . . . . . . . . 9 Lightning 6 | . . . . . . . . . . . . . . 6 . . . . . . . . . Combat Programmer 2 | . . . . . . . . . . . . . . . . . . . . . . . 2 Executioner 2 | . . . . . . . . . . . . . . . . . . . . . 2 . . Protovariant P 1 | . . . . . . . . . . . . . . . . . . 1 . . . . . Zionite 8 | . . . 8 . . . . . . . . . . . . . . . . . . . . Assembled 7 | . . . 7 . . . . . . . . . . . . . . . . . . . . Guerrilla 1 | . . . . . . . . . . . 1 . . . . . . . . . . . . Best Kill Streak 25 | 2 6 3 7 1 8 11 . 4 9 5 2 1 3 20 4 5 25 10 15 7 4 11 8 Combat Bots Only 18 | . 5 3 7 . 6 10 . 4 7 2 2 1 3 13 3 4 18 9 10 6 4 6 8 Max Kills in Single Turn 18 | 1 2 1 3 1 2 2 . 2 4 2 2 1 1 18 1 2 3 2 3 3 2 2 3 Gunslinging 1 | . 1 . . . . . . . 1 . . . . 1 . . 1 1 . 1 . 1 1 Exploded 3 | . . . 3 . 1 1 . . . . . . . 1 . 1 . . . . . . 2 Melee 1 | . . . 1 . . . . . . . . . . . . . . . . 1 1 . . Uniques/NPCs Destroyed 5 | . . . 4 . . . . . . . . . . . . . . . . . . . 1 8R-AWN (-10/Exiles) EX-BIN (-10/Exiles) EX-HEX (-10/Exiles) EX-DEC (-10/Exiles) MAIN.C Shell (-1/Command) Combat | -11 -10 -10 -10 -9 -8 -7 -7 -7 -7 -6 -6 -6 -6 -6 -5 -4 -3 -3 -2 -2 -2 -1 -1 -------- Run | Scr Mat Min Exi Min Mat Fac Was Fac Sto Fac Ext Cet Arc Hub Fac Fac Res Tes Res Qua Sec Acc Com Damage Taken 15927 | . 516 39 287 . 524 459 . 254 245 80 281 74 33 1040 45 139 2064 371 1189 569 1157 739 5822 Core 9751 | . 423 33 224 . 268 221 . 117 109 50 132 30 25 586 27 91 1166 216 672 321 726 445 3869 Absorbed by Shields 7286 | . . . . . . 188 . 106 102 30 116 26 11 396 18 50 777 282 888 534 1049 692 2021 Redirected to Core 8765 | . 282 15 178 . 218 194 . 115 96 41 117 30 25 516 27 91 1090 198 631 313 676 411 3501 Core Remaining (%) 96 | 100 . . . 98 100 . . . 99 . . . . 99 98 94 . 99 . . 83 . . Volleys Fired 1264 | 5 72 4 35 2 67 56 4 34 38 21 49 7 5 65 17 24 127 75 106 65 104 80 202 Largest 3 | 2 2 2 2 2 2 2 2 2 2 2 2 2 2 2 2 2 2 2 2 3 2 2 2 Hottest 200 | 40 40 46 60 60 60 60 60 60 60 60 60 60 60 60 60 60 60 130 60 93 60 60 200 Shots Fired 2471 | 10 144 8 63 4 131 111 8 68 76 42 86 14 10 130 34 48 253 145 210 134 208 160 374 Gun 2406 | 10 144 8 56 4 131 111 8 68 76 42 74 14 10 130 34 48 253 126 210 134 208 160 347 Cannon 44 | . . . . . . . . . . . . . . . . . . 19 . . . . 25 Launcher 7 | . . . 7 . . . . . . . . . . . . . . . . . . . . Special 14 | . . . . . . . . . . . 12 . . . . . . . . . . . 2 Kinetic 2425 | 10 144 8 56 4 131 111 8 68 76 42 74 14 10 130 34 48 253 145 210 134 208 160 347 Thermal 25 | . . . . . . . . . . . . . . . . . . . . . . . 25 Explosive 7 | . . . 7 . . . . . . . . . . . . . . . . . . . . Electromagnetic . | . . . . . . . . . . . . . . . . . . . . . . . . Robot Hit Streak 60 | 3 13 4 7 3 10 15 6 26 43 53 31 22 24 25 32 23 41 36 56 43 56 23 60 Robot Miss Streak 4 | 1 4 3 4 1 3 1 . 1 2 2 1 . 1 2 1 2 2 2 2 2 2 1 2 Penetration Max 2 | . . . 2 . 2 2 . 1 2 1 1 1 1 2 1 1 2 1 2 2 1 2 2 Secondary Targets 69 | . 6 . . . 1 3 . . 7 . 1 . . 7 . 2 14 4 6 7 2 5 4 Max Gunslinging Chain 1 | . 1 . . . 1 1 . . 1 . 1 . . 1 . 1 1 1 1 1 1 1 1 Shots Hit Robots 2051 | 7 110 4 50 3 93 91 5 50 61 30 78 14 7 108 26 41 226 97 187 82 194 135 352 Core Hits 1074 | 4 39 3 33 1 50 49 3 26 42 13 27 7 5 87 15 21 129 45 96 44 83 69 183 Critical Kills 373 | . 2 . 5 1 24 16 2 6 19 4 10 3 2 31 9 7 58 28 43 25 25 33 20 Critical Parts Destroyed 639 | . 3 . 16 2 35 21 2 15 23 15 29 1 2 46 6 15 81 36 66 27 59 59 80 Critical Strikes 1128 | . 5 . 22 3 61 40 4 25 42 19 42 7 4 80 15 25 157 67 130 54 96 92 138 Meltdown 1 | . . . . . . . . . . . . . . . . . . . . . . . 1 Destroy 1122 | . 5 . 21 3 61 40 4 25 42 19 42 7 4 80 15 25 157 65 130 52 96 92 137 Blast 2 | . . . . . . . . . . . . . . . . . . 2 . . . . . Sever 3 | . . . 1 . . . . . . . . . . . . . . . . 2 . . . Melee Attacks 81 | . . . 16 . . . . . . . . . . . . . . . . 27 25 9 4 Impact . | . . . . . . . . . . . . . . . . . . . . . . . . Slashing 81 | . . . 16 . . . . . . . . . . . . . . . . 27 25 9 4 Piercing . | . . . . . . . . . . . . . . . . . . . . . . . . Sneak Attacks 1 | . . . . . . . . . . . . . . . . . . . . . 1 . . Combat Hostiles . | . . . . . . . . . . . . . . . . . . . . . . . . Follow-up Attacks . | . . . . . . . . . . . . . . . . . . . . . . . . Damage Inflicted 64714 | 57 1067 82 2027 66 2393 2052 137 1064 1585 929 1595 397 184 5715 486 1404 5990 3877 5175 2809 6451 3601 15571 Guns 46400 | 57 1067 82 818 66 2300 1992 137 1001 1585 670 1595 397 184 3081 486 979 5990 2240 5175 1993 3657 3465 7383 Cannons 5316 | . . . . . . . . . . . . . . . . . . 1637 . . . . 3679 Explosions 8640 | . . . 524 . 93 60 . 63 . 259 . . . 2634 . 425 . . . . . 136 4446 Melee 4358 | . . . 685 . . . . . . . . . . . . . . . . 816 2794 . 63 Ramming . | . . . . . . . . . . . . . . . . . . . . . . . . Kinetic 48037 | 57 1067 82 818 66 2300 1992 137 1001 1585 670 1595 397 184 3081 486 979 5990 3877 5175 1993 3657 3465 7383 Thermal 9023 | . . . . . . . . 63 . 259 . . . 120 . 425 . . . . . 31 8125 Explosive 722 | . . . 524 . 93 . . . . . . . . . . . . . . . . 105 . Electromagnetic 2574 | . . . . . . 60 . . . . . . . 2514 . . . . . . . . . Impact . | . . . . . . . . . . . . . . . . . . . . . . . . Slashing 4358 | . . . 685 . . . . . . . . . . . . . . . . 816 2794 . 63 Piercing . | . . . . . . . . . . . . . . . . . . . . . . . . Highest Corruption 8 | . . . . . . . . . . . . . . 3 . . 1 1 8 8 8 . . Average Corruption 3 | . . . . . . . . . . . . . . 2 . . 1 1 6 8 3 . . Corruption Purged 6 | . . . . . . . . . . . . . . . . . . . . . 6 . . Effects 74 | . . . . . . . . . . . . . . 2 . . 3 5 8 39 17 . . Message Errors 22 | . . . . . . . . . . . . . . . . . 2 4 2 10 4 . . Matter Fused 19 | . . . . . . . . . . . . . . . . . . . 2 9 8 . . Heat Flow Errors 7 | . . . . . . . . . . . . . . 1 . . . . 1 4 1 . . Energy Discharges 14 | . . . . . . . . . . . . . . 1 . . . 1 2 8 2 . . Data Loss (minor) 4 | . . . . . . . . . . . . . . . . . . . . 2 2 . . Data Loss (major) 2 | . . . . . . . . . . . . . . . . . . . . 2 . . . Misfires 3 | . . . . . . . . . . . . . . . . . . . . 3 . . . Weapon Failures 3 | . . . . . . . . . . . . . . . . . 1 . 1 1 . . . Overload Shots . | . . . . . . . . . . . . . . . . . . . . . . . . Overflow Damage 1692 | . . . 84 . . . . . . 5 . . . 163 . 42 . 488 . 22 11 34 843 Projectiles 958 | . . . . . . . . . . . . . . . . . . 488 . . . . 470 Explosions 646 | . . . 29 . . . . . . 5 . . . 163 . 42 . . . . . 34 373 Melee 88 | . . . 55 . . . . . . . . . . . . . . . . 22 11 . . Knockbacks 6 | . . . . . . . . . . . . . . . . . . 6 . . . . . Impact . | . . . . . . . . . . . . . . . . . . . . . . . . Kinetic 6 | . . . . . . . . . . . . . . . . . . 6 . . . . . Secondary . | . . . . . . . . . . . . . . . . . . . . . . . . Self-Inflicted Damage 372 | . 57 . . . . . . 41 . 55 . . . 173 . . . . . . . . 46 Shots 10 | . 1 . . . . . . 1 . 2 . . . 4 . . . . . . . . 2 Rammed . | . . . . . . . . . . . . . . . . . . . . . . . . Targets Rammed . | . . . . . . . . . . . . . . . . . . . . . . . . Kicked . | . . . . . . . . . . . . . . . . . . . . . . . . Crushed . | . . . . . . . . . . . . . . . . . . . . . . . . Highest Temperature 381 | . 12 . . . 381 60 . 2 14 14 19 . . 212 50 51 207 347 130 152 158 . 192 Average Temperature 53 | . 7 . . . 76 21 . 2 3 12 8 . . 24 19 17 69 63 78 70 100 . 58 Received Heat Transfer 3101 | . 210 . . . 387 192 . 116 172 . 128 6 4 349 36 15 336 102 170 102 69 134 573 Effects 7 | . . . . . 2 . . . . . . . . . . . 1 4 . . . . . Shutdowns 1 | . . . . . . . . . . . . . . . . . . 1 . . . . . Energy Bleed 1 | . . . . . 1 . . . . . . . . . . . . . . . . . . Interference 5 | . . . . . 1 . . . . . . . . . . . 1 3 . . . . . Siege Activations . | . . . . . . . . . . . . . . . . . . . . . . . . Robots Corrupted 2 | . . . . . . . . . . . . . . 2 . . . . . . . . . Combat Hostiles . | . . . . . . . . . . . . . . . . . . . . . . . . Parts Fried 16 | . . . . . . . . . . . 1 . . 13 . 2 . . . . . . . Impact Corruptions . | . . . . . . . . . . . . . . . . . . . . . . . . Robots Melted 1 | . . . . . . . . . . . . . . . . . . . . . . . 1 Combat Hostiles 1 | . . . . . . . . . . . . . . . . . . . . . . . 1 Parts Melted 6 | . . . . . . . . . 2 . . . . . . . 2 . . . . . 2 Heat Transferred 5940 | . . . . . . . . 100 . 250 . . . 200 . 300 . . . . . 50 5040 Parts Sabotaged 1 | . . . . . . . . . . . . . . . . . . . . . 1 . . Parts Stolen . | . . . . . . . . . . . . . . . . . . . . . . . . Parts Stripped . | . . . . . . . . . . . . . . . . . . . . . . . . Power Chain Reactions 4 | . . . . . . 1 . . . . . . . 3 . . . . . . . . . Missiles Intercepted . | . . . . . . . . . . . . . . . . . . . . . . . . Alert | -11 -10 -10 -10 -9 -8 -7 -7 -7 -7 -6 -6 -6 -6 -6 -5 -4 -3 -3 -2 -2 -2 -1 -1 ------- Run | Scr Mat Min Exi Min Mat Fac Was Fac Sto Fac Ext Cet Arc Hub Fac Fac Res Tes Res Qua Sec Acc Com Peak Influence 1515 | 10 424 224 . 5 868 720 153 482 817 552 524 327 179 1503 949 719 1515 1128 1267 647 696 1076 825 Initial 666 | . 5 139 . . 1 338 152 . 112 318 232 198 90 52 634 400 219 666 552 620 280 345 605 Average 501 | 4 168 214 . 2 315 371 151 187 460 437 375 270 155 858 748 515 995 738 751 356 515 714 514 Maximum Alert Level 4 | . 2 1 . . 3 3 . 2 3 2 2 1 . 4 3 3 4 4 4 2 3 3 3 Low Security (%) 20 | 100 61 16 . 100 47 23 100 47 27 . . 7 100 10 . . . . . 19 . . 32 Level 1 21 | . 28 83 . . 20 30 . 50 14 23 60 92 . 9 . 15 6 2 . 41 15 20 4 Level 2 36 | . 10 . . . 20 44 . 2 38 76 39 . . 10 37 83 25 29 50 39 84 20 44 Level 3 17 | . . . . . 11 1 . . 19 . . . . 37 62 . 23 63 41 . . 58 18 Level 4 4 | . . . . . . . . . . . . . . 31 . . 45 4 8 . . . . Level 5 . | . . . . . . . . . . . . . . . . . . . . . . . . High Security . | . . . . . . . . . . . . . . . . . . . . . . . . Max Security . | . . . . . . . . . . . . . . . . . . . . . . . . Squads Dispatched 89 | . 4 . . . 4 7 . 2 7 1 2 . . 9 1 3 16 5 5 5 10 6 2 Investigation 15 | . 4 . . . . 2 . 1 2 . 1 . . . 1 1 1 1 . . 1 . . Extermination 13 | . . . . . . . . 1 . 1 . . . 1 . 1 1 1 1 2 2 1 1 Reinforcement 36 | . . . . . 1 2 . . 3 . 1 . . 6 . 1 9 2 3 2 4 2 . Assault 17 | . . . . . 1 1 . . 2 . . . . 2 . . 2 1 1 . 3 3 1 Garrison 8 | . . . . . 2 2 . . . . . . . . . . 3 . . 1 . . . Intercept . | . . . . . . . . . . . . . . . . . . . . . . . . Construction Impeded 8 | . . . . . 1 . . . 1 . . . . 2 . . 1 1 . . 1 1 . Haulers Reinforced 4 | . . . . . . . . . . . . . . 1 . . 1 . 1 1 . . . Active Scanning Responses . | . . . . . . . . . . . . . . . . . . . . . . . . Cargo Convoy Interrupts . | . . . . . . . . . . . . . . . . . . . . . . . . Stealth | -11 -10 -10 -10 -9 -8 -7 -7 -7 -7 -6 -6 -6 -6 -6 -5 -4 -3 -3 -2 -2 -2 -1 -1 --------- Run | Scr Mat Min Exi Min Mat Fac Was Fac Sto Fac Ext Cet Arc Hub Fac Fac Res Tes Res Qua Sec Acc Com Distress Signals 30 | . 1 . . . 2 . . . 1 1 3 2 . 5 . 1 2 1 1 . 1 1 8 Communications Jammed . | . . . . . . . . . . . . . . . . . . . . . . . . Distress Signals . | . . . . . . . . . . . . . . . . . . . . . . . . Times Spotted 627 | . 26 2 19 . 31 27 . 15 32 4 16 6 4 51 7 11 75 40 47 35 57 54 68 Peak Tracking Total 19 | . 6 2 9 . 4 4 . 4 11 2 4 5 2 10 1 4 10 6 6 4 12 19 8 Tactical Retreats 51 | . . . 2 . 4 5 . 1 . . . . . 5 . . 9 2 3 1 7 5 7 Traps | -11 -10 -10 -10 -9 -8 -7 -7 -7 -7 -6 -6 -6 -6 -6 -5 -4 -3 -3 -2 -2 -2 -1 -1 ------- Run | Scr Mat Min Exi Min Mat Fac Was Fac Sto Fac Ext Cet Arc Hub Fac Fac Res Tes Res Qua Sec Acc Com Traps Triggered 18 | . 1 . . . 2 2 . 3 . . 4 . . 1 . . 1 2 1 . 1 . . Indirectly 1 | . . . . . . . . . . . . . . 1 . . . . . . . . . Trap Hack Attempts . | . . . . . . . . . . . . . . . . . . . . . . . . Triggered . | . . . . . . . . . . . . . . . . . . . . . . . . Disarmed . | . . . . . . . . . . . . . . . . . . . . . . . . Reprogrammed 1 | . . . . . . . . . . . 1 . . . . . . . . . . . . Reused 5 | . . . . . . . . . . . 1 . . . 1 . . . . 1 . . 2 Traps Reconfigurated 19 | . . . . . 6 . . . . . . . . . 6 . . . . 2 1 . 4 Traps Extracted . | . . . . . . . . . . . . . . . . . . . . . . . . Installed . | . . . . . . . . . . . . . . . . . . . . . . . . Triggered 4 | . . . . . . . . . . . 1 . . . 1 . . . . 1 . . 1 Machines | -11 -10 -10 -10 -9 -8 -7 -7 -7 -7 -6 -6 -6 -6 -6 -5 -4 -3 -3 -2 -2 -2 -1 -1 ---------- Run | Scr Mat Min Exi Min Mat Fac Was Fac Sto Fac Ext Cet Arc Hub Fac Fac Res Tes Res Qua Sec Acc Com Machines Disabled 139 | . 3 . 10 . 13 6 . 13 . 6 2 . 3 39 1 7 . 6 2 8 11 7 2 Max in Single Turn 21 | . 3 . 2 . 2 2 . 6 . 4 1 . 1 21 1 3 . 1 1 1 1 2 1 Garrison Access 10 | . . . . . 1 2 . 1 . . . . . 1 . 1 1 . 1 1 . 1 . Network Hub 4 | . . . . . . . . . . . . . . 4 . . . . . . . . . Energy Cycler 1 | . . . . . . . . . . . . . . . . . . . . . . 1 . Machines Sabotaged . | . . . . . . . . . . . . . . . . . . . . . . . . Garrisons Compromised . | . . . . . . . . . . . . . . . . . . . . . . . . Overloaded Fab Kills . | . . . . . . . . . . . . . . . . . . . . . . . . Hacking | -11 -10 -10 -10 -9 -8 -7 -7 -7 -7 -6 -6 -6 -6 -6 -5 -4 -3 -3 -2 -2 -2 -1 -1 --------- Run | Scr Mat Min Exi Min Mat Fac Was Fac Sto Fac Ext Cet Arc Hub Fac Fac Res Tes Res Qua Sec Acc Com Machines Accessed 102 | . 6 . 2 . 5 9 . 10 4 1 10 1 . 5 3 5 6 6 1 10 10 2 6 Terminals 73 | . 4 . . . 5 6 . 6 2 . 10 1 . 5 2 2 3 4 . 6 10 1 6 Fabricators 7 | . . . . . . 1 . 2 . 1 . . . . . 1 2 . . . . . . Repair Stations . | . . . . . . . . . . . . . . . . . . . . . . . . Recycling Units 4 | . 2 . . . . . . . 2 . . . . . . . . . . . . . . Scanalyzers 7 | . . . . . . . . 1 . . . . . . 1 1 . 1 . 3 . . . Garrison Access 9 | . . . . . . 2 . 1 . . . . . . . 1 1 1 1 1 . 1 . Total Hacks 429 | . 16 . 2 . 21 22 . 35 6 3 39 1 . 40 26 40 25 37 2 41 24 4 45 Successful 253 | . 9 . 2 . 17 12 . 22 4 2 28 1 . 21 16 28 14 18 1 26 8 2 22 Failed 176 | . 7 . . . 4 10 . 13 2 1 11 . . 19 10 12 11 19 1 15 16 2 23 Catastrophic 27 | . 1 . . . . 2 . . . . . . . 8 . 1 2 3 . 3 1 . 6 Database Lockouts . | . . . . . . . . . . . . . . . . . . . . . . . . Manual 195 | . 10 . 1 . 11 6 . 6 3 3 18 1 . 19 11 25 12 19 . 15 6 . 29 Terminals 350 | . 14 . . . 21 18 . 23 3 . 39 1 . 40 17 27 16 28 . 33 24 1 45 Fabricators 27 | . . . . . . 2 . 7 . 3 . . . . . 7 8 . . . . . . Repair Stations . | . . . . . . . . . . . . . . . . . . . . . . . . Recycling Units 5 | . 2 . . . . . . . 3 . . . . . . . . . . . . . . Scanalyzers 24 | . . . . . . . . 3 . . . . . . 9 5 . 1 . 6 . . . Garrison Access 21 | . . . . . . 2 . 2 . . . . . . . 1 1 8 2 2 . 3 . Terminal Hacks 160 | . 4 . 2 . 10 8 . 13 2 . 21 1 . 16 8 14 8 11 . 18 8 1 15 Record 7 | . . . 1 . . . . 1 . . . . . . 1 . . 1 . 3 . . . Part Schematic 11 | . . . . . . 1 . 1 . . 3 . . . . 4 . . . 1 1 . . Robot Schematic 1 | . . . . . . . . . . . . . . . 1 . . . . . . . . Robot Analysis 10 | . . . . . . . . 1 . . 2 . . 2 . . 1 2 . . . . 2 Prototype ID Bank 13 | . . . . . 4 1 . . . . 2 . . 3 . . 1 . . 1 . . 1 Open Door 15 | . . . . . . . . . 2 . 6 1 . . . . . . . . 5 . 1 Open DSF 1 | . . . . . . . . 1 . . . . . . . . . . . . . . . Level Access Points 8 | . . . . . . . . 1 . . . . . 1 1 1 . 1 . 2 1 . . Branch Access Points 5 | . . . . . . . . 1 . . . . . . 1 . 1 1 . . . 1 . Emergency Access Points 2 | . . . . . . . . . . . . . . 1 . . . . . . . . 1 Machine Index 8 | . 1 . . . . . . . . . 2 . . . 1 1 . 1 . 1 . . 1 Terminal Index 1 | . . . . . . 1 . . . . . . . . . . . . . . . . . Fabricator Index 1 | . . . . . . . . . . . . . . . . . 1 . . . . . . Alert Level 10 | . . . . . . . . 1 . . . . . 1 . 1 1 1 . 3 . . 2 Unreport Threat 19 | . . . . . . 2 . 1 . . . . . 4 . 3 1 2 . 4 . . 2 Locate Traps 15 | . 2 . . . 3 . . 1 . . 1 . . 1 1 1 . 1 . 2 . . 2 Reprogram Traps 1 | . . . . . . . . . . . 1 . . . . . . . . . . . . Maintenance Status 2 | . . . . . . . . . . . . . . 1 . 1 . . . . . . . Security Status 1 | . . . . . . . . . . . . . . . . . . . . . . . 1 Patrol Status 3 | . . . . . . . . . . . . . . 1 . . . . . . . . 2 Recall Investigation 2 | . . . . . . . . . . . 1 . . . 1 . . . . . . . . Recall Extermination 1 | . . . . . . . . . . . . . . . . . 1 . . . . . . Recall Assault 1 | . . . . . . 1 . . . . . . . . . . . . . . . . . Hauler Manifests 6 | . . . . . 1 1 . 2 . . 1 . . . 1 . . . . . . . . Registered Components 2 | . 1 . . . . . . 1 . . . . . . . . . . . . . . . Registered Prototypes 3 | . . . . . 1 . . . . . . . . . . 1 1 . . . . . . Zone Layout 9 | . . . . . 1 1 . 1 . . 2 . . 1 . 1 . 1 . 1 . . . EX-Prototype ID Bank 1 | . . . 1 . . . . . . . . . . . . . . . . . . . . Activate Exoskeleton 1 | . . . . . . . . . . . . . . . . . . . . . 1 . . Fabricator Hacks 10 | . . . . . . . . 2 . . . . . . . 4 4 . . . . . . Load Schematic 5 | . . . . . . . . 1 . . . . . . . 2 2 . . . . . . Build 5 | . . . . . . . . 1 . . . . . . . 2 2 . . . . . . Repair Station Hacks . | . . . . . . . . . . . . . . . . . . . . . . . . Recycling Unit Hacks . | . . . . . . . . . . . . . . . . . . . . . . . . Scanalyzer 12 | . . . . . . . . 2 . . . . . . 3 3 . . . 4 . . . Insert Component 8 | . . . . . . . . 1 . . . . . . 2 1 . . . 4 . . . Analyze 4 | . . . . . . . . 1 . . . . . . 1 2 . . . . . . . Garrison Access Hacks 8 | . . . . . . 2 . 1 . . . . . . . 1 1 . 1 1 . 1 . Seal Access 8 | . . . . . . 2 . 1 . . . . . . . 1 1 . 1 1 . 1 . Unauthorized Hacks 63 | . 5 . . . 7 2 . 4 2 2 7 . . 5 5 6 1 7 . 3 . . 7 Terminals 41 | . 3 . . . 7 . . 1 . . 7 . . 5 5 3 . 1 . 2 . . 7 Track 12 | . 1 . . . 3 . . . . . 2 . . 1 1 1 . . . 1 . . 2 Assimilate 2 | . . . . . . . . 1 . . . . . . . . . 1 . . . . . Botnet 11 | . 1 . . . 3 . . . . . 3 . . . 2 . . . . . . . 2 Detonate 6 | . . . . . . . . . . . . . . 4 . 1 . . . . . . 1 Disrupt 2 | . . . . . . . . . . . 1 . . . . . . . . . . . 1 Operators 8 | . 1 . . . 1 . . . . . 1 . . . 2 1 . . . 1 . . 1 Fabricators 11 | . . . . . . 2 . 3 . 2 . . . . . 3 1 . . . . . . Report 4 | . . . . . . 1 . 1 . 1 . . . . . 1 . . . . . . . Prioritize 3 | . . . . . . . . 1 . . . . . . . 1 1 . . . . . . Haulers 4 | . . . . . . 1 . 1 . 1 . . . . . 1 . . . . . . . Repair Stations . | . . . . . . . . . . . . . . . . . . . . . . . . Recycling Units 4 | . 2 . . . . . . . 2 . . . . . . . . . . . . . . Tunnel 4 | . 2 . . . . . . . 2 . . . . . . . . . . . . . . Scanalyzers 2 | . . . . . . . . . . . . . . . . . . 1 . 1 . . . Researchers 2 | . . . . . . . . . . . . . . . . . . 1 . 1 . . . Garrison Access 5 | . . . . . . . . . . . . . . . . . . 5 . . . . . Broadcast 1 | . . . . . . . . . . . . . . . . . . 1 . . . . . Decoy 1 | . . . . . . . . . . . . . . . . . . 1 . . . . . Redirect 1 | . . . . . . . . . . . . . . . . . . 1 . . . . . Reprogram 1 | . . . . . . . . . . . . . . . . . . 1 . . . . . Watchers 1 | . . . . . . . . . . . . . . . . . . 1 . . . . . Data Cores Recovered 4 | . . . . . . . . . . . . . . . 1 . . 1 . 1 1 . . Used 3 | . . . . . . . . . . . . . . . 1 . . . . 1 1 . . Hacking Detections 66 | . 4 . . . 4 7 . 10 1 . 5 . . 5 3 4 4 5 . 4 5 1 4 Full Trace Events 7 | . 1 . . . . 2 . 1 . . . . . . 1 1 . . . . 1 . . Feedback Events . | . . . . . . . . . . . . . . . . . . . . . . . . Feedback Blocked . | . . . . . . . . . . . . . . . . . . . . . . . . Robot Schematics Acquired 1 | . . . . . . . . . . . . . . . 1 . . . . . . . . Robots Built 2 | . . . . . . . . . . . . . . . . 2 . . . . . . . Authchips . | . . . . . . . . . . . . . . . . . . . . . . . . Time 42 | . . . . . . . . . . . . . . . . 42 . . . . . . . Total Robot Build Rating 12 | . . . . . . . . . . . . . . . . 12 . . . . . . . Part Schematics Acquired 14 | . . . . . . 1 . 2 . . 3 . . . 1 5 . . . 1 1 . . Parts Built 5 | . . . . . . . . 1 . . . . . . . 2 2 . . . . . . Authchips . | . . . . . . . . . . . . . . . . . . . . . . . . Time 217 | . . . . . . . . 93 . . . . . . . 18 106 . . . . . . Total Part Build Rating 24 | . . . . . . . . 7 . . . . . . . 6 11 . . . . . . Parts Repaired . | . . . . . . . . . . . . . . . . . . . . . . . . Time . | . . . . . . . . . . . . . . . . . . . . . . . . Parts Recycled . | . . . . . . . . . . . . . . . . . . . . . . . . Recycled Matter . | . . . . . . . . . . . . . . . . . . . . . . . . Retrieved Matter . | . . . . . . . . . . . . . . . . . . . . . . . . Retrieved Components . | . . . . . . . . . . . . . . . . . . . . . . . . Parts Scanalyzed 3 | . . . . . . . . 1 . . . . . . 2 . . . . . . . . Part Schematics Acquired 3 | . . . . . . . . 1 . . . . . . 1 1 . . . . . . . Parts Damaged . | . . . . . . . . . . . . . . . . . . . . . . . . Bothacking | -11 -10 -10 -10 -9 -8 -7 -7 -7 -7 -6 -6 -6 -6 -6 -5 -4 -3 -3 -2 -2 -2 -1 -1 ------------ Run | Scr Mat Min Exi Min Mat Fac Was Fac Sto Fac Ext Cet Arc Hub Fac Fac Res Tes Res Qua Sec Acc Com Used RIF Installer . | . . . . . . . . . . . . . . . . . . . . . . . . Robots Hacked 1 | . . . . . . . . . . . . . . . . . . . . . . . 1 Non-combat . | . . . . . . . . . . . . . . . . . . . . . . . . Combat 1 | . . . . . . . . . . . . . . . . . . . . . . . 1 Robot Hacks Applied 1 | . . . . . . . . . . . . . . . . . . . . . . . 1 parse_system 1 | . . . . . . . . . . . . . . . . . . . . . . . 1 Manual 1 | . . . . . . . . . . . . . . . . . . . . . . . 1 Relay Couplers Released 3 | . . . . . 1 1 . . . . . . . . . . 1 . . . . . . Machine Destruction 3 | . . . . . 1 1 . . . . . . . . . . 1 . . . . . . Robots Rewired 11 | . . . . . . . . . . . 9 . . . . 1 . 1 . . . . . Allies Hacked 1 | . . . . . . . . . . . . . . . . 1 . . . . . . . Hacks Repelled . | . . . . . . . . . . . . . . . . . . . . . . . . Allies | -11 -10 -10 -10 -9 -8 -7 -7 -7 -7 -6 -6 -6 -6 -6 -5 -4 -3 -3 -2 -2 -2 -1 -1 -------- Run | Scr Mat Min Exi Min Mat Fac Was Fac Sto Fac Ext Cet Arc Hub Fac Fac Res Tes Res Qua Sec Acc Com Total Allies 32 | . . . . . . . . . 2 . 17 5 . . . 4 . 4 . . . . . Largest Group 12 | . . . . . . . . . 2 . 12 12 9 5 . 3 1 3 3 . . . . Highest-Rated Group 711 | . . . . . . . . . 62 . 441 711 552 325 . 157 54 141 141 . . . . Highest-Rated Ally 159 | . . . . . . . . . 31 . 159 159 151 95 . 54 54 126 47 . . . . Total Orders 2 | . . . . . . . . . . . . . . . . . . 2 . . . . . STAY 1 | . . . . . . . . . . . . . . . . . . 1 . . . . . FOLLOW 1 | . . . . . . . . . . . . . . . . . . 1 . . . . . Ally Attacks 285 | . . . . . . . . . 17 . 81 35 19 56 . 26 3 36 12 . . . . Total Damage 8265 | . . . . . . . . . 292 . 1378 930 544 2320 . 980 47 1299 475 . . . . Kills 53 | . . . . . . . . . 4 . 11 3 1 18 . 3 . 13 . . . . . Allies Corrupted 2 | . . . . . . . . . . . . . . 1 . . . 1 . . . . . Allies Melted 2 | . . . . . . . . . . . . . . . . . . . 1 . . . 1 Intel | -11 -10 -10 -10 -9 -8 -7 -7 -7 -7 -6 -6 -6 -6 -6 -5 -4 -3 -3 -2 -2 -2 -1 -1 ------- Run | Scr Mat Min Exi Min Mat Fac Was Fac Sto Fac Ext Cet Arc Hub Fac Fac Res Tes Res Qua Sec Acc Com Robot Analysis Total 10 | . . . . . . . . 1 . . 2 . . 2 . . 1 2 . . . . 2 Derelict Logs Recovered . | . . . . . . . . . . . . . . . . . . . . . . . . Drone Launches . | . . . . . . . . . . . . . . . . . . . . . . . . Drone Recoveries . | . . . . . . . . . . . . . . . . . . . . . . . . Exploration | -11 -10 -10 -10 -9 -8 -7 -7 -7 -7 -6 -6 -6 -6 -6 -5 -4 -3 -3 -2 -2 -2 -1 -1 ------------- Run | Scr Mat Min Exi Min Mat Fac Was Fac Sto Fac Ext Cet Arc Hub Fac Fac Res Tes Res Qua Sec Acc Com Turns Passed 15106 | 53 674 37 566 67 973 825 400 871 344 285 1016 222 77 469 242 326 932 1077 1112 1146 1296 644 1452 Spaces Moved 9519 | 28 535 70 432 49 545 491 296 540 187 188 677 123 38 209 177 203 428 639 787 858 897 376 746 Core 12 | 2 . . . . . . . . 1 . . . . . . . . . . . . . 9 Treads . | . . . . . . . . . . . . . . . . . . . . . . . . Legs 8924 | 26 245 . 209 49 545 491 296 540 186 188 677 123 38 209 177 203 428 639 787 858 897 376 737 Wheels . | . . . . . . . . . . . . . . . . . . . . . . . . Hover 77 | . 77 . . . . . . . . . . . . . . . . . . . . . . Flight 506 | . 213 70 223 . . . . . . . . . . . . . . . . . . . . Fastest Speed 34 | 50 34 34 34 126 126 126 126 120 120 120 120 120 120 100 100 100 100 100 100 100 100 100 50 Average Speed 105 | 115 79 34 76 126 126 126 126 122 121 120 120 120 120 113 100 100 100 100 100 100 100 102 105 Slowest Speed 400 | 120 120 34 194 126 126 126 126 126 400 120 120 120 120 120 100 100 100 100 100 100 170 105 183 Overloaded Moves . | . . . . . . . . . . . . . . . . . . . . . . . . Propulsion Burnouts . | . . . . . . . . . . . . . . . . . . . . . . . . Robots Hopped 3 | . 3 . . . . . . . . . . . . . . . . . . . . . . Cave-ins Triggered . | . . . . . . . . . . . . . . . . . . . . . . . . Teleports 2 | . . . . . . . . . . . . . . . . . . . . 1 1 . . Exploration Rate (%) 44 | 3 86 12 89 24 59 18 91 19 37 8 85 60 69 64 7 6 18 76 26 89 71 16 32 Regions Visited 23 Branch Regions 12 Pre-discovered Areas 5 | . 2 . 1 . . . . . 2 . . . . . . . . . . . . . . Known Exits Taken 10 | . . . . . . . . 1 1 . . . . 1 1 1 1 1 1 . 1 1 . Unknown Exits Taken 11 | 1 1 1 1 1 1 . . . . 1 1 1 1 . . . . . . 1 . . . Scrap Searched 2 | . . . . 2 . . . . . . . . . . . . . . . . . . . Spaces Dug 35 | . . . . . . . . 1 . . . . . . . . . 2 . 19 6 4 3 Terrain Destroyed 1470 | . 14 . 13 1 119 20 4 86 55 88 17 . 8 658 25 90 28 20 22 45 22 33 102 Melee 21 | . . . . . . . . . . . . . . . . . . . . 12 2 4 3 Projectile 363 | . . . 6 1 67 19 4 13 52 14 14 . 8 23 10 7 21 16 8 22 11 11 36 AOE 1022 | . 14 . 7 . 51 . . 72 . 73 . . . 631 14 82 . . 9 . . 14 55 Terrain Rammed . | . . . . . . . . . . . . . . . . . . . . . . . . Walls Destroyed . | . . . . . . . . . . . . . . . . . . . . . . . . Machines Disabled . | . . . . . . . . . . . . . . . . . . . . . . . . Actions | -11 -10 -10 -10 -9 -8 -7 -7 -7 -7 -6 -6 -6 -6 -6 -5 -4 -3 -3 -2 -2 -2 -1 -1 --------- Run | Scr Mat Min Exi Min Mat Fac Was Fac Sto Fac Ext Cet Arc Hub Fac Fac Res Tes Res Qua Sec Acc Com Total 12566 | 38 660 76 587 50 702 596 319 696 245 214 815 186 61 339 213 289 737 979 981 1010 1109 516 1148 Wait 734 | . 12 . 69 . 29 15 6 97 . . 52 49 16 1 7 47 61 182 16 3 2 4 66 Move 9492 | 27 529 69 431 48 544 491 295 539 186 187 676 122 37 208 176 202 427 638 786 857 896 375 746 Hop 2 | . 2 . . . . . . . . . . . . . . . . . . . . . . Pick Up 41 | . 4 . 2 . 4 2 2 1 1 . 1 . . . 1 1 2 2 3 6 5 1 3 Fast Attach 137 | 6 5 . 9 . 2 2 4 3 2 1 2 1 . 5 1 2 9 22 4 7 20 3 27 Attach 12 | . . . . . . . . 1 . . . . . 1 1 . . 2 1 1 2 . 3 Detach 6 | . . . 1 . . . . 1 . . . . . . . . . 1 . . . 1 2 Swap 40 | . 3 . 3 . 2 . . 1 . . 9 . . 3 4 2 1 1 1 2 . . 8 Drop 144 | . 8 . 11 . 5 2 6 5 2 . 2 1 . 7 . 3 8 24 5 9 11 4 31 Fire 1264 | 5 72 4 35 2 67 56 4 34 38 21 49 7 5 65 17 24 127 75 106 65 104 80 202 Melee 81 | . . . 16 . . . . . . . . . . . . . . . . 27 25 9 4 Ram . | . . . . . . . . . . . . . . . . . . . . . . . . Kick . | . . . . . . . . . . . . . . . . . . . . . . . . Crush . | . . . . . . . . . . . . . . . . . . . . . . . . Escape Stasis . | . . . . . . . . . . . . . . . . . . . . . . . . Rewire 10 | . . . . . . . . . . . . . . . . 2 . 8 . . . . . Trap . | . . . . . . . . . . . . . . . . . . . . . . . . Miscellaneous 603 | . 25 3 10 . 49 28 2 14 16 5 24 6 3 49 6 6 102 24 59 33 44 39 56 Route ------- -11/Scrapyard -10/Materials (discovered 3 exits: [*Mat x2] / [*Min]) -10/Mines -10/Exiles (discovered 2 exits: [*Min x2]) -9/Mines -8/Materials (discovered 2 exits: *Fac x2) -7/Factory (discovered 2 exits: *Fac x2) -7/Waste -7/Factory (discovered 8 exits: Fac x4 / *Sto x2 / *Low x2) -7/Storage -6/Factory (discovered 2 exits: *Fac / *Ext) -6/Extension (discovered 3 exits: *Fac x2 / *Cet) -6/Cetus -6/Archives (discovered 2 exits: Fac / *Hub) -6/Hub_04(d) (discovered 4 exits: *Fac x4) -5/Factory (discovered 6 exits: *Fac x4 / Upp x2) -4/Factory (discovered 4 exits: *Res x4) -3/Research (discovered 3 exits: Arm / *Tes x2) -3/Testing -2/Research -2/Quarantine (discovered 2 exits: *Acc / *Sec) -2/Section 7 -1/Access -1/Command (discovered 2 exits: Sur x2) History --------- Turn | Location | Event 4 | -11/Scrapyard | Upgraded with Propulsion slot (x1) 4 | -11/Scrapyard | Upgraded with Utility slot (x1) 4 | -11/Scrapyard | Upgraded with Weapon slot (x1) 5 | -11/Scrapyard | Discovered new exit (range 17) 54 | -11/Scrapyard | Entered Materials 302 | -10/Materials | Build established: Skirmisher 377 | -10/Materials | Discovered new exit (range 17) 561 | -10/Materials | Reached level 2 573 | -10/Materials | Upgraded with Propulsion slot (x1) 629 | -10/Materials | Discovered new exit (range 14) 695 | -10/Materials | Discovered new exit (range 17) 728 | -10/Materials | Entered Mines 730 | -10/Mines | Reached level 3 739 | -10/Mines | Upgraded with Utility slot (x1) 753 | -10/Mines | Deemed a non-threat by the Exiles lab entrance 753 | -10/Mines | Discovered new exit (range 5) 765 | -10/Mines | Entered Exiles 771 | -10/Exiles | Discovered new exit (range 17) 775 | -10/Exiles | Met 8R-AWN 780 | -10/Exiles | Met EX-HEX 791 | -10/Exiles | Met EX-BIN 797 | -10/Exiles | Aligned with FarCom system 798 | -10/Exiles | Given EX-Vault access code 806 | -10/Exiles | Opened EX-Vault 809 | -10/Exiles | Found Trap Reconfigurator 812 | -10/Exiles | Found Longsword +1 821 | -10/Exiles | Warned to stay clear of 0b10 Research branches 830 | -10/Exiles | Met EX-DEC 832 | -10/Exiles | Learned location of Zion (-6) 840 | -10/Exiles | Attacked by the Exiles 872 | -10/Exiles | Build established: Hacker-Scout 895 | -10/Exiles | Destroyed 7 combat bots 958 | -10/Exiles | Destroyed 8R-AWN 962 | -10/Exiles | Found Prototype Protection 962 | -10/Exiles | Identified 8R-AWN's Armor/EX 975 | -10/Exiles | Found Prototype Ballistic Gun 975 | -10/Exiles | Identified 8R-AWN's Boregun 978 | -10/Exiles | Found 8R-AWN's Boregun 1082 | -10/Exiles | Destroyed EX-BIN 1164 | -10/Exiles | Destroyed EX-HEX 1185 | -10/Exiles | Destroyed EX-DEC 1265 | -10/Exiles | Build established: Scavenger-Skirmisher 1316 | -10/Exiles | Discovered new exit (range 15) 1331 | -10/Exiles | Stole two prototypes: Trap Reconfigurator, Longsword +1 1331 | -10/Exiles | Entered Mines 1333 | -9/Mines | Reached level 4 1373 | -9/Mines | Discovered new exit (range 8) 1398 | -9/Mines | Entered Materials 1400 | -8/Materials | Reached level 5 1400 | -8/Materials | Reached level 6 1919 | -8/Materials | Reached level 7 1948 | -8/Materials | Discovered new exit (range 6) 2082 | -8/Materials | Reached level 8 2238 | -8/Materials | Reached level 9 2311 | -8/Materials | Discovered new exit (range 17) 2371 | -8/Materials | Entered Factory 2373 | -7/Factory | Reached level 10 2373 | -7/Factory | Reached level 11 2375 | -7/Factory | Upgraded with Utility slot (x2) 2538 | -7/Factory | Discovered new exit (range 18) 2803 | -7/Factory | Build established: Hacker-Skirmisher 2899 | -7/Factory | Discovered new exit (range 15) 2915 | -7/Factory | Reached level 12 2998 | -7/Factory | Reached level 13 3035 | -7/Factory | Destroyed 10 combat bots 3171 | -7/Factory | First assault squad dispatched 3196 | -7/Factory | Sucked down chute 3196 | -7/Factory | Entered Waste 3196 | -7/Waste | The area was eerily silent 3249 | -7/Waste | Build established: Scavenger-Skirmisher 3549 | -7/Waste | Discovered new exit (range 15) 3596 | -7/Waste | Entered Factory 3759 | -7/Factory | Reached level 14 4027 | -7/Factory | Build established: Hacker-Skirmisher 4054 | -7/Factory | Discovered new exit (range 18) 4171 | -7/Factory | Identified exit to Factory 4279 | -7/Factory | Fabricated Adv. Myomer Leg (x1) 4309 | -7/Factory | Discovered new exit (range 17) 4345 | -7/Factory | Reached level 15 4436 | -7/Factory | Identified exit to Storage 4436 | -7/Factory | Identified exit to Lower Caves 4467 | -7/Factory | Entered Storage 4487 | -7/Storage | Met a pair of Derelict thieves 4586 | -7/Storage | Destroyed 7 combat bots 4647 | -7/Storage | Reached level 16 4654 | -7/Storage | Upgraded with Utility slot (x1) 4766 | -7/Storage | Discovered exit to Factory (range 17) 4811 | -7/Storage | Entered Factory 4813 | -6/Factory | Reached level 17 4982 | -6/Factory | Discovered new exit (range 13) 5017 | -6/Factory | Discovered new exit (range 15) 5096 | -6/Factory | Entered Extension 5098 | -6/Extension | Reached level 18 5110 | -6/Extension | Upgraded with Utility slot (x1) 5145 | -6/Extension | Rescued a captive Derelict 5164 | -6/Extension | Rescued a captive Derelict 5198 | -6/Extension | Rescued a captive Derelict 5199 | -6/Extension | Rescued a captive Derelict 5200 | -6/Extension | Rescued a captive Derelict 5201 | -6/Extension | Rescued a captive Derelict 5296 | -6/Extension | Rescued a captive Derelict 5453 | -6/Extension | Build established: Scavenger-Skirmisher 5660 | -6/Extension | Spotted B-75 Beast 5682 | -6/Extension | Spotted B-75 Beast 5686 | -6/Extension | Allies destroyed B-75 Beast 5697 | -6/Extension | Discovered new exit (range 13) 5697 | -6/Extension | Destroyed B-75 Beast 5839 | -6/Extension | Rescued A7 5921 | -6/Extension | Disrupted transfer network 5986 | -6/Extension | Reached level 19 6065 | -6/Extension | Discovered new exit (range 10) 6067 | -6/Extension | Discovered new exit (range 6) 6112 | -6/Extension | Entered Cetus 6112 | -6/Cetus | Accompanied by 11 allies (A7) 6117 | -6/Cetus | Acquired a Cetus Manufacturing Module code from A7 6129 | -6/Cetus | Spotted Cetus Guard 6129 | -6/Cetus | Spotted Cetus Guard 6132 | -6/Cetus | Spotted Cetus Guard 6135 | -6/Cetus | Spotted Cetus Guard 6145 | -6/Cetus | Allies destroyed Cetus Guard 6147 | -6/Cetus | Allies destroyed Cetus Guard 6150 | -6/Cetus | Destroyed Cetus Guard 6157 | -6/Cetus | Allies destroyed Cetus Guard 6202 | -6/Cetus | Build established: Hacker-Skirmisher 6204 | -6/Cetus | Started Cetus Manufacturing Module 6212 | -6/Cetus | Escorted A7 to Cetus Mainframe 6225 | -6/Cetus | Discovered new exit (range 18) 6229 | -6/Cetus | Manufactured an Enhanced Grunt 6254 | -6/Cetus | Manufactured an Enhanced Grunt 6279 | -6/Cetus | Manufactured an Enhanced Grunt 6304 | -6/Cetus | Manufactured an Enhanced Grunt 6329 | -6/Cetus | Manufactured an Enhanced Grunt 6334 | -6/Cetus | Entered Archives 6334 | -6/Archives | Accompanied by 9 allies (A7) 6339 | -6/Archives | Received a hacking code to weaken MAIN.C 6363 | -6/Archives | Discovered new exit (range 18) 6374 | -6/Archives | Discovered new exit (range 18) 6411 | -6/Archives | Entered Hub_04(d) 6411 | -6/Hub_04(d) | Accompanied by 5 allies 6449 | -6/Hub_04(d) | Reached level 20 6453 | -6/Hub_04(d) | Upgraded with Utility slot (x1) 6482 | -6/Hub_04(d) | Spotted B-75 Beast 6517 | -6/Hub_04(d) | Allies destroyed B-75 Beast 6578 | -6/Hub_04(d) | Network Hub disabled 6578 | -6/Hub_04(d) | Network Hub disabled 6609 | -6/Hub_04(d) | Discovered new exit (range 14) 6617 | -6/Hub_04(d) | Identified exit to Factory 6628 | -6/Hub_04(d) | Spotted Lightning 6632 | -6/Hub_04(d) | Destroyed Lightning 6633 | -6/Hub_04(d) | Spotted Lightning 6637 | -6/Hub_04(d) | Spotted Lightning 6640 | -6/Hub_04(d) | Destroyed Lightning 6648 | -6/Hub_04(d) | Reached level 21 6648 | -6/Hub_04(d) | Destroyed Lightning 6710 | -6/Hub_04(d) | Found Prototype Device 6710 | -6/Hub_04(d) | Identified Exp. Phase Shifter 6713 | -6/Hub_04(d) | Found Prototype Device 6713 | -6/Hub_04(d) | Identified EM Dispersion Field 6734 | -6/Hub_04(d) | Network Hub disabled 6761 | -6/Hub_04(d) | First assault squad dispatched 6771 | -6/Hub_04(d) | Spotted Lightning 6772 | -6/Hub_04(d) | Spotted Lightning 6774 | -6/Hub_04(d) | Spotted Lightning 6777 | -6/Hub_04(d) | Destroyed Lightning 6780 | -6/Hub_04(d) | Destroyed Lightning 6800 | -6/Hub_04(d) | Destroyed Lightning 6840 | -6/Hub_04(d) | Destroyed 13 combat bots 6870 | -6/Hub_04(d) | Network Hub disabled 6880 | -6/Hub_04(d) | Entered Factory 6881 | -5/Factory | Upgraded with Power slot (x1) 6928 | -5/Factory | Identified exit to Upper Caves 7004 | -5/Factory | Build established: Scavenger-Skirmisher 7004 | -5/Factory | Identified exit to Factory 7023 | -5/Factory | Reached level 22 7047 | -5/Factory | Upgraded with Propulsion slot (x1) 7122 | -5/Factory | Entered another Factory area 7124 | -4/Factory | Reached level 23 7159 | -4/Factory | Fabricated Lrn. Tractor Beam (x2) 7205 | -4/Factory | Fabricated P-70 Sage (x2) 7361 | -4/Factory | Sage 7b assimilated hostile G-67 Veteran 7397 | -4/Factory | Identified exit to Research 7448 | -4/Factory | Reached level 24 7448 | -4/Factory | Entered Research 7448 | -3/Research | Accompanied by 1 ally 7450 | -3/Research | Reached level 25 7450 | -3/Research | Upgraded with Utility slot (x1) 7474 | -3/Research | Garrison activated, responded to threat 7506 | -3/Research | Reached level 26 7514 | -3/Research | Spotted B-86 Titan 7532 | -3/Research | Destroyed 7 combat bots 7567 | -3/Research | Destroyed B-86 Titan 7653 | -3/Research | Found Prototype Processor 7653 | -3/Research | Identified Exp. Target Analyzer 7656 | -3/Research | Found Exp. Target Analyzer 7725 | -3/Research | Garrison activated, responded to threat 7798 | -3/Research | Reached level 27 7925 | -3/Research | Destroyed 18 combat bots 7948 | -3/Research | First assault squad dispatched 8016 | -3/Research | Reached level 28 8028 | -3/Research | Upgraded with Utility slot (x1) 8028 | -3/Research | Upgraded with Weapon slot (x1) 8060 | -3/Research | Destroyed 7 combat bots 8093 | -3/Research | Identified exit to Armory 8093 | -3/Research | Identified exit to Testing 8222 | -3/Research | Fabricated Prc. Matter Filter (x1) 8293 | -3/Research | Fabricated Exp. Targeting Computer (x1) 8380 | -3/Research | Entered Testing 8446 | -3/Testing | Spotted PL-0MZ8E1SEWB 8450 | -3/Testing | Unstable Terrabomb Derivative detonated 8459 | -3/Testing | Rewired PL-0MZ8E1SEWB 8490 | -3/Testing | Reached level 29 8529 | -3/Testing | Identified exit to Research 8569 | -3/Testing | Spotted PP-L91SG8CS92 8576 | -3/Testing | Destroyed PP-L91SG8CS92 8728 | -3/Testing | Spotted Striker 8729 | -3/Testing | Spotted Striker 8743 | -3/Testing | Found Prototype Ballistic Cannon 8743 | -3/Testing | Identified Omega Cannon 8940 | -3/Testing | Found Prototype Energy Gun 8940 | -3/Testing | Identified Warp Gun 9286 | -3/Testing | Destroyed 9 combat bots 9366 | -3/Testing | Found Prototype Hackware 9366 | -3/Testing | Identified System Mapper 9380 | -3/Testing | First assault squad dispatched 9457 | -3/Testing | Entered Research 9457 | -2/Research | Accompanied by 3 allies 9459 | -2/Research | Reached level 30 9515 | -2/Research | Spotted B-90 Cyclops 9665 | -2/Research | Spotted B-90 Cyclops 9672 | -2/Research | Build established: Wizard-Skirmisher 9718 | -2/Research | Destroyed B-90 Cyclops 9976 | -2/Research | Reached level 31 10339 | -2/Research | Destroyed 10 combat bots 10457 | -2/Research | First assault squad dispatched 10536 | -2/Research | Discovered new exit (range 15) 10567 | -2/Research | Identified exit to Quarantine 10569 | -2/Research | Entered Quarantine 10571 | -2/Quarantine | Reached level 32 10613 | -2/Quarantine | Identified exit to Access 10679 | -2/Quarantine | Found Alien Artifact 10694 | -2/Quarantine | Identified Terrabomb 10805 | -2/Quarantine | Upgraded with Weapon slot (x1) 10805 | -2/Quarantine | Found Alien Slashing Weapon 10805 | -2/Quarantine | Identified Sigix Broadsword 11001 | -2/Quarantine | Found Alien Artifact 11066 | -2/Quarantine | Found Alien Energy Cannon 11066 | -2/Quarantine | Identified Core Cannon 11090 | -2/Quarantine | Build established: Wizard-Gladiator 11143 | -2/Quarantine | Identified Subatomic Replicator 11217 | -2/Quarantine | Found Alien Artifact 11270 | -2/Quarantine | Identified Core Reset Matrix 11340 | -2/Quarantine | Found Alien Artifact 11346 | -2/Quarantine | Found Alien Artifact 11349 | -2/Quarantine | Identified Hpw. Transdimensional Reconstructor (x2) 11349 | -2/Quarantine | Warped through subspace 11381 | -2/Quarantine | Found Alien Artifact 11441 | -2/Quarantine | Garrison activated, responded to threat 11605 | -2/Quarantine | Identified Transdimensional Reconstructor 11628 | -2/Quarantine | Spotted Fortress 11636 | -2/Quarantine | Build established: Scavenger-Gladiator 11710 | -2/Quarantine | Discovered new exit (range 7) 11715 | -2/Quarantine | Entered Section 7 11717 | -2/Section 7 | Reached level 33 11723 | -2/Section 7 | Upgraded with Utility slot (x1) 11801 | -2/Section 7 | Found Alien Artifact 11801 | -2/Section 7 | Identified Integrated Reactor 11801 | -2/Section 7 | Installed Integrated Reactor, increased core energy generation (+10) 11822 | -2/Section 7 | Found Alien Artifact 11822 | -2/Section 7 | Identified Integrated Mediator 11822 | -2/Section 7 | Installed Integrated Mediator, increased core attachment efficiency. 11915 | -2/Section 7 | Spotted S7 Guard 11949 | -2/Section 7 | Destroyed S7 Guard 11965 | -2/Section 7 | First assault squad dispatched 11980 | -2/Section 7 | Found Alien Artifact 11980 | -2/Section 7 | Identified Core Membrane 11980 | -2/Section 7 | Installed Core Membrane, gained immunity to corruption 12086 | -2/Section 7 | Spotted Executioner 12086 | -2/Section 7 | Spotted Executioner 12093 | -2/Section 7 | Destroyed Executioner 12102 | -2/Section 7 | Destroyed Executioner 12137 | -2/Section 7 | Found Prototype Processor 12137 | -2/Section 7 | Identified Exp. Core Analyzer 12213 | -2/Section 7 | Spotted Striker 12213 | -2/Section 7 | Spotted Striker 12310 | -2/Section 7 | Spotted B-99 Colossus 12415 | -2/Section 7 | Destroyed B-99 Colossus 12477 | -2/Section 7 | Found Alien Artifact 12477 | -2/Section 7 | Identified Integrity Redistributor 12477 | -2/Section 7 | Used Integrity Redistributor, redistributed integrity from core (-11) 12482 | -2/Section 7 | Found Integrity Redistributor 12484 | -2/Section 7 | Found Integrity Redistributor 12555 | -2/Section 7 | Found Alien Artifact 12555 | -2/Section 7 | Identified LRC Insulator 12555 | -2/Section 7 | Installed LRC Insulator, gained EM resistance (25) 12562 | -2/Section 7 | Found Alien Artifact 12562 | -2/Section 7 | Identified LRC Energy Well 12562 | -2/Section 7 | Installed LRC Energy Well, increased energy storage capacity (+250) 12564 | -2/Section 7 | Found Alien Artifact 12564 | -2/Section 7 | Identified LRC Matter Compressor 12564 | -2/Section 7 | Installed LRC Matter Compressor, increased matter storage capacity (+125) 12681 | -2/Section 7 | Spotted Executioner 12681 | -2/Section 7 | Spotted Executioner 12789 | -2/Section 7 | Spotted Alpha 7 12789 | -2/Section 7 | Spotted Alpha 7 12792 | -2/Section 7 | Warped through subspace 12872 | -2/Section 7 | Found Alien Artifact 12872 | -2/Section 7 | Identified Microwarp Drive 12934 | -2/Section 7 | Spotted B-90 Cyclops 13011 | -2/Section 7 | Entered Access 13013 | -1/Access | Reached level 34 13040 | -1/Access | Found Prototype Hackware 13040 | -1/Access | Identified Exp. System Shield 13261 | -1/Access | First assault squad dispatched 13280 | -1/Access | Energy Cycler disabled 13346 | -1/Access | Identified exit to Command 13480 | -1/Access | Reached level 35 13635 | -1/Access | Spotted B-99 Colossus 13636 | -1/Access | Spotted B-99 Colossus 13655 | -1/Access | Entered Command 13901 | -1/Command | Found Prototype Device 13901 | -1/Command | Identified Exp. Thermal Shield 14135 | -1/Command | Spotted M Guard 14135 | -1/Command | Spotted M Guard 14135 | -1/Command | Spotted Combat Programmer 14138 | -1/Command | Spotted Combat Programmer 14246 | -1/Command | Destroyed Combat Programmer 14253 | -1/Command | Destroyed Combat Programmer 14306 | -1/Command | Destroyed M Guard 14321 | -1/Command | Found Prototype Device 14321 | -1/Command | Identified AEGIS Remote Shield 14329 | -1/Command | Found Prototype Reactor 14329 | -1/Command | Identified Zero-point Reactor 14340 | -1/Command | Destroyed M Guard 14340 | -1/Command | All MAIN.C guards destroyed 14340 | -1/Command | Reached level 36 14352 | -1/Command | Found Prototype Protection 14352 | -1/Command | Identified Hvy. Regenerative Plating 14372 | -1/Command | Found Hvy. Regenerative Plating 14405 | -1/Command | First assault squad dispatched 14448 | -1/Command | Met MAIN.C 14449 | -1/Command | Hacked MAIN.C using A7's code 14453 | -1/Command | 0b10 Conduit disabled 14583 | -1/Command | MAIN.C activated Command garrisons 14627 | -1/Command | Destroyed MAIN.C Shell 14629 | -1/Command | Surrendered to MAIN.C 14629 | -1/Command | Loaded intel: 65 machine locations 14629 | -1/Command | Loaded intel: 110 trap records 14629 | -1/Command | Identified exit to Surface 14629 | -1/Command | Discovered exit to Surface (range 68) 14629 | -1/Command | Discovered exit to Surface (range 70) 14734 | -1/Command | Found Prototype Reactor 14734 | -1/Command | Identified Vortex Chain Reactor 14744 | -1/Command | Found Prototype Device 14744 | -1/Command | Identified Exp. Hardlight Generator 14766 | -1/Command | Found Prototype Energy Cannon 14766 | -1/Command | Identified Imp. Potential Cannon 14793 | -1/Command | MAIN.C activated Command garrisons 14835 | -1/Command | Unknown forces attacked Command 14835 | -1/Command | Spotted EQ-002 14835 | -1/Command | Spotted EQ-006 14862 | -1/Command | Spotted EQ-001 14870 | -1/Command | Spotted EQ-014 14890 | -1/Command | Spotted EQ-016 14920 | -1/Command | Spotted EQ-018 14920 | -1/Command | Spotted EQ-019 14920 | -1/Command | Spotted EQ-020 14921 | -1/Command | Spotted EQ-000 14929 | -1/Command | Spotted EQ-035 14950 | -1/Command | Core integrity fell below 50% 14953 | -1/Command | Destroyed EQ-002 14963 | -1/Command | Destroyed EQ-001 14964 | -1/Command | Spotted EQ-023 14968 | -1/Command | Destroyed EQ-035 14978 | -1/Command | Destroyed EQ-023 14980 | -1/Command | Spotted EQ-031 14980 | -1/Command | Spotted EQ-009 14983 | -1/Command | Found Exp. Core Analyzer 14985 | -1/Command | Destroyed EQ-009 14990 | -1/Command | Spotted EQ-022 14995 | -1/Command | Destroyed EQ-022 15011 | -1/Command | Spotted EQ-024 15016 | -1/Command | Destroyed 8 combat bots 15016 | -1/Command | Destroyed EQ-024 15025 | -1/Command | Spotted EQ-042 15025 | -1/Command | Spotted EQ-040 15025 | -1/Command | Spotted EQ-053 15025 | -1/Command | Spotted EQ-041 15025 | -1/Command | Spotted EQ-038 15025 | -1/Command | Spotted EQ-048 15041 | -1/Command | Spotted EQ-039 15044 | -1/Command | Spotted EQ-045 15058 | -1/Command | Spotted EQ-051 15065 | -1/Command | Destroyed EQ-041 15069 | -1/Command | Destroyed EQ-042 15074 | -1/Command | Core integrity fell below 20% 15079 | -1/Command | Used Integrity Redistributor, redistributed integrity to core (+398) 15084 | -1/Command | Spotted EQ-043 15099 | -1/Command | Spotted EQ-055 15101 | -1/Command | Used Integrity Redistributor, redistributed integrity to core (+18) 15102 | -1/Command | Released all parts (13) 15107 | -1/Command | Destroyed by EQ-038 with Improved KE Penetrator Last Messages --------------- 15099_ Destroyed Com. HERF Cannon. 15099_ Destroyed Exp. Biometal Leg. 15100_ Penetrated by Slug. 15101_ Integrity redistributed to core (+18). 15102_ Hvy. Regenerative Plating destroyed. 15102_ Released Centrium Medium Armor Plating. 15102_ Released Exp. Core Analyzer. 15102_ Released Centrium Medium Armor Plating. 15102_ Released Imp. Potential Cannon. 15102_ Released Hdn. Centrium Leg. 15102_ Released Exp. Cooling System. 15102_ Released Adv. Weapon Cycler. 15102_ Released Enh. Biometal Leg. 15102_ Released Exp. Targeting Computer. 15102_ Released AEGIS Remote Shield. 15102_ Released Vortex Chain Reactor. 15102_ Released Hdn. Centrium Leg. 15102_ Released Exp. Power Amplifier. 15107_ Slug penetrates Wall. 15107_ Penetrated by Slug. Map ----- +----------------------------------------------------+ | ###### ## ]]%[ " #?# % % | | ## ]] #?# | | #### ## #?#" | | """# ## [!! #?# | | """# "# !%* #?# % | | """# !! "" !!! #?#= = | | """# ! %" =!= #### *%= ! | | """# [%= [== !%%%%[% [%[%*% | | #### [ %= [% [!%[ *!!=!% | | # % ! ! = !% %!! | | # ####### #####"" Q Q *[%####=% ! ![% | | # # # #???# % Q #?# = %!%% % | | # # # #???# ##?# | | #### # + #???# % = ## # ##?########## | | # # #??## %*=%;;#####"####??????????? | | # # #??#" %]=!# #?############ | | ####### #??##*=%!!!; #????????????? | | ####### ######"!#!/; ! #????????????? | | %% ; #????????????? | | / #????????????? | | #######"# # " #????????????? | | ## # # """" #????????????? | | ## # # """" #????????????? | | + # # "" #????????????? | | ####### # ##########????????????? | | ######## #?????# #@%#?????????????????????? | | #####??# #?????######## =#?????????????????????? | | #??# #???????????## ##????????????????????? | | #### #?########### ! #????????????????????? | | " + #?# !!= #????????????????????? | | "" #### #?# !%* #????????????????????? | | "" #??# #?# < #######!!= #????????????????????? | | " #??# #?# #?????##;;##????????????????????? | | #??# #?#####??????####?????????????????????? | | #??# #?????????????????????????????????????? | | #+###?## ##????????????????????????????????????? | | #??# #????????????????????????????????????? | | #### #????????????????????????????????????? | | " + #????????????????????????????????????? | | " #### #????????????????????????????????????? | | " #??# #????????????????????????????????????? | | " #??#######????????????????????????????????????? | | #?????????????????????????????????????????????? | | #?????????????????????????????????????????????? | | #?????????????????????????????????????????????? | | ####?????????????????????????????????????????????? | | ?????????????????????????????????????????????????? | | ?????????????????????????????????????????????????? | | ?????????????????????????????????????????????????? | | ?????????????????????????????????????????????????? | +----------------------------------------------------+ Best States ------------- Heat Dissipation 87 Energy Generation 100 Energy Capacity 1650 Matter Stores 625 Matter Capacity 625 Sight Range 25 Terrain Scan Range 18 Terrain Scan Density 510 Power Amplification 40 Armor Coverage 1050 Resistance: KI 40 Resistance: TH 40 Resistance: EX 100 Resistance: EM 95 Resistance: I 20 Resistance: S 20 Resistance: P 20 Weapon Cycling 25 Phase Shifting 20 Evasion (%) 81 Targeting Accuracy 12 Target Analysis 10 Core Analysis 15 Armor Integrity Analysis 40 Matter Filtering 50 Offensive Hacking 50 Defensive Hacking 31 Item Schematics ----------------- Imp. Gravmag System | -7/Factory | Hacked Adv. Myomer Leg | -7/Factory | Scanalyzed Tesla Bomb Launcher | -7/Factory | Hacked Matter Filter | -6/Extension | Hacked Lrn. Tractor Beam | -6/Extension | Hacked Hvy. Machine Gun | -6/Extension | Hacked Enh. Biometal Leg | -5/Factory | Scanalyzed Exp. Phase Shifter | -4/Factory | Scanalyzed Prc. Matter Filter | -4/Factory | Hacked Imp. Weapon Cycler | -4/Factory | Hacked Adv. Target Analyzer | -4/Factory | Hacked Exp. Targeting Computer | -4/Factory | Hacked Enh. Nova Cannon | -2/Quarantine | Hacked Exp. Biometal Leg | -2/Section 7 | Hacked Robot Schematics ------------------ P-70 Sage | -5/Factory | Hacked Fabricated ------------ Adv. Myomer Leg | x1 | -7/Factory Lrn. Tractor Beam | x2 | -4/Factory P-70 Sage | x2 | -4/Factory Prc. Matter Filter | x1 | -3/Research Exp. Targeting Computer | x1 | -3/Research Alien Tech Used ----------------- Sigix Broadsword Core Cannon High-powered Transdimensional Reconstructor Integrated Reactor Integrated Mediator Core Membrane Integrity Redistributor LRC Insulator LRC Energy Well LRC Matter Compressor Transdimensional Reconstructor Microwarp Drive Achievements -------------- None Challenges ------------ None RPGLIKE | -11 -10 -10 -10 -9 -8 -7 -7 -7 -7 -6 -6 -6 -6 -6 -5 -4 -3 -3 -2 -2 -2 -1 -1 --------- Run | Scr Mat Min Exi Min Mat Fac Was Fac Sto Fac Ext Cet Arc Hub Fac Fac Res Tes Res Qua Sec Acc Com Levels Raised 35 | . 1 1 . 1 5 4 . 2 1 1 2 . . 2 1 2 4 1 2 1 1 2 1 XP Earned 57637 | 4000 2730 850 350 649 8571 5898 200 1889 1826 1985 2130 594 415 2410 1200 2941 6642 1829 3365 1361 1108 2246 2448 XP Spent 56475 | 3980 1500 1200 . 1770 4380 9090 . 1425 3065 800 2260 . . 3025 2865 555 8505 1550 1500 1100 3310 3015 1580 Upgrades 110 | 17 5 2 . 9 7 17 . 3 3 1 3 . . 4 6 3 12 2 1 1 2 9 3 Power Slot 1 | . . . . . . . . . . . . . . . 1 . . . . . . . . Propulsion Slot 3 | 1 1 . . . . . . . . . . . . . 1 . . . . . . . . Utility Slot 10 | 1 . 1 . . . 2 . . 1 . 1 . . 1 . . 2 . . . 1 . . Weapon Slot 3 | 1 . . . . . . . . . . . . . . . . 1 . . 1 . . . Core Integrity 38 | 4 . . . 4 . 1 . . 1 . 2 . . . 3 3 9 . . . . 9 2 Heat Dissipation 4 | 1 . . . . . 2 . . . . . . . . . . . . . . 1 . . Energy Generation 3 | . . . . . . . . . . . . . . 1 . . . 1 . . . . 1 Energy Storage 2 | . . . . . . . . . . . . . . 2 . . . . . . . . . Matter Storage 4 | . . . . . . 2 . 2 . . . . . . . . . . . . . . . Mass Support 1 | 1 . . . . . . . . . . . . . . . . . . . . . . . Inventory Capacity 6 | 3 . . . . 1 . . . 1 . . . . . . . . . 1 . . . . Sight Range 2 | 2 . . . . . . . . . . . . . . . . . . . . . . . Terrain Scan Density 5 | 3 . . . . 2 . . . . . . . . . . . . . . . . . . Ranged Accuracy 7 | . . . . 1 2 2 . 1 . . . . . . . . . 1 . . . . . Hack Attack % 4 | . 1 1 . . . 1 . . . . . . . . 1 . . . . . . . . Hack Defense % 3 | . 1 . . . . 1 . . . 1 . . . . . . . . . . . . . KI Resistance % 4 | . 1 . . . . 3 . . . . . . . . . . . . . . . . . TH Resistance % 4 | . 1 . . . . 3 . . . . . . . . . . . . . . . . . EX Resistance % 2 | . . . . 2 . . . . . . . . . . . . . . . . . . . KI Damage % 4 | . . . . 2 2 . . . . . . . . . . . . . . . . . . Protomatter Created 9153 | . 251 16 7 . 455 334 65 298 272 61 432 40 143 801 111 129 1452 324 1104 912 537 579 830 Integrity Restored 12127 | . 499 39 210 . 1021 467 43 268 266 89 344 112 33 1064 123 120 2196 441 1222 606 922 796 1246 Core 7104 | . 423 33 210 . 282 221 . 105 112 59 132 30 25 584 15 29 1242 210 678 421 580 574 1139 Parts 5023 | . 76 6 . . 739 246 43 163 154 30 212 82 8 480 108 91 954 231 544 185 342 222 107 Protomatter Decayed 10242 | . 2 . 12 . 35 72 450 203 153 . 600 48 68 542 13 284 841 323 706 768 290 343 4489 Game ------ Seed AngularZioniteFemtoactuators Manual? 0 Play Time 03:34:43 Cumulative 143.7 hours Start 2021.11.03 @ 21:11:32 End 2021.11.05 @ 15:39:44 Sessions 7 Manual Loads 0 Difficulty Adventurer Special Mode Winter2019/RPGLIKE Game No. 122 Rogue 14 Adventurer 106 Explorer 2 Win Type - Total 7 Types 3/0/1/0/0/1/1/1/0 Lore% 72 Gallery% 79 Achievement% 71 Wizard Run 0 Options --------- ASCII 0 Keyboard 0 Movement Mouse Keybinds 0 Fullscreen 1 Font 24/Smallcaps Map View 76x50 Tactical HUD 1 Map Filters NONE Filters NONE Steam 1 RUN: f7da0fa8-2f4d-43b8-b5ea-d43c78438db9